bitfinex/quotes_ETHUSD_20250314
["timestamp","ask_amount","ask_price","bid_price","bid_amount"]
[1741952005081,5.30580534,1908.3,1908.1,3.0]
[1741952005649,5.24067,1908.2,1907.9,3.8161]
[1741952005948,5.30618286,1908.2,1908.0,0.38161]
[1741952006780,5.28996558,1908.2,1907.9,3.8161]
[1741952007580,5.28996558,1908.2,1908.1,0.49135884]
[1741952008111,0.06551286,1908.2,1908.1,0.49135884]
[1741952008582,14.71016089,1908.3,1908.1,0.49135884]
[1741952008784,14.71016089,1908.3,1907.9,9.05734]
[1741952009077,5.24055,1908.2,1907.9,6.96831501]
[1741952009282,0.0655128,1908.2,1907.9,6.96831501]
[1741952009484,5.3060928,1908.2,1907.9,1.72707501]
[1741952009660,5.3060928,1908.2,1907.8,5.24162]
[1741952009865,5.24082,1908.1,1907.8,5.24162]
[1741952010266,5.3060928,1908.2,1907.8,10.48309]
[1741952010464,5.3060928,1908.2,1907.8,5.24147]
[1741952010667,10.5468228,1908.2,1907.8,5.24147]
[1741952010867,10.5468228,1908.2,1907.8,6.365986]
[1741952011395,5.3060928,1908.2,1907.8,6.365986]
[1741952011693,10.5468628,1908.2,1907.8,6.365986]
[1741952011858,5.3060928,1908.2,1907.8,6.365986]
[1741952012853,0.0655128,1908.2,1908.0,5.24096]
[1741952013055,5.23988,1908.5,1908.1,10.48145]
[1741952013265,0.06550476,1908.4,1908.1,5.24064]
[1741952013581,5.30558476,1908.4,1908.0,6.589846]
[1741952013781,10.54575476,1908.4,1908.0,6.589846]
[1741952014096,5.24026,1908.3,1908.0,6.589846]
[1741952014399,5.24026,1908.3,1908.0,0.524096]
[1741952014760,5.24026,1908.3,1907.9,6.01383]
[1741952014960,11.27206,1908.3,1907.9,6.01383]
[1741952015156,5.24091,1908.1,1907.7,6.0487]
[1741952015465,5.24091,1908.1,1907.7,11.29051]
[1741952015997,5.30661691,1908.0,1907.6,17.64656154]
[1741952016194,5.30661691,1908.0,1907.7,0.71088618]
[1741952016367,0.06551691,1908.0,1907.7,5.95275618]
[1741952016567,0.06551691,1908.0,1907.7,11.19451618]
[1741952016767,5.30642691,1908.1,1907.8,5.24159]
[1741952017069,5.24056,1908.2,1907.9,5.24133]
[1741952017264,0.7913,1908.3,1908.0,5.24091]
[1741952017600,6.09721072,1908.3,1907.9,6.368564]
[1741952017771,5.24057,1908.2,1907.9,1.127284]
[1741952017969,5.30636073,1908.1,1907.8,0.79]
[1741952018167,5.30636073,1908.1,1907.7,11.19442618]
[1741952018369,5.30636073,1908.1,1907.7,5.95259618]
[1741952018571,5.24085,1908.1,1907.7,6.00500971]
[1741952018764,5.24085,1908.1,1907.8,5.84212097]
[1741952018964,5.30636691,1908.1,1907.8,5.84212097]
[1741952019258,5.24085,1908.1,1907.8,5.84212097]
[1741952020409,5.24054,1908.2,1907.8,11.08353097]
[1741952021398,5.24054,1908.2,1907.9,5.24128]
[1741952021695,0.06551498,1908.2,1907.9,7.1749991]
[1741952021895,0.06551498,1908.2,1907.9,7.1749091]
[1741952022407,5.30617498,1908.2,1907.9,1.1083191]
[1741952022612,5.30617498,1908.2,1907.8,5.84201097]
[1741952022905,5.2411,1908.0,1907.7,5.99837]
[1741952023066,5.2409,1908.1,1907.8,5.24162]
[1741952023891,10.48191,1908.1,1907.7,5.99823]
[1741952024089,5.24116,1908.0,1907.7,5.99823]
[1741952024403,6.07037686,1908.0,1907.7,5.24173]
[1741952024606,6.07037686,1908.0,1907.7,6.29012]
[1741952025411,0.82921686,1908.0,1907.5,1.81426669]
[1741952025582,10.48366,1907.8,1907.5,1.03746669]
[1741952025906,5.30757523,1907.7,1907.3,11.29116]
[1741952026711,5.30715731,1907.8,1907.5,5.24243]
[1741952027005,5.30715731,1907.8,1907.4,5.24271]
[1741952027205,0.06552726,1907.7,1907.4,6.371808]
[1741952027366,5.30743726,1907.7,1907.4,6.371808]
[1741952027569,0.06552726,1907.7,1907.4,6.371808]
[1741952030208,5.30746726,1907.7,1907.4,6.371808]
[1741952031795,5.24236,1907.6,1907.3,0.8053]
[1741952032113,0.06553341,1907.5,1907.2,5.79327]
[1741952032616,5.30799341,1907.5,1907.2,5.79327]
[1741952032817,0.06553341,1907.5,1907.2,5.79327]
[1741952032987,10.55028319,1907.6,1907.2,5.79318]
[1741952033386,5.30789319,1907.6,1907.2,5.79318]
[1741952033591,5.30789319,1907.6,1907.2,6.979812]
[1741952033820,5.30789319,1907.6,1907.2,12.222952]
[1741952033986,5.24236,1907.6,1907.3,5.24297]
[1741952034929,6.00463,1907.7,1907.3,5.24297]
[1741952034930,11.24675,1907.7,1907.3,5.24297]
[1741952035926,0.06553344,1907.6,1907.3,5.24297]
[1741952036094,5.30772344,1907.6,1907.3,1.2222742]
[1741952036294,5.30772344,1907.6,1907.2,11.03626]
[1741952036743,5.30772344,1907.6,1907.2,5.79312]
[1741952037242,5.30772344,1907.6,1907.2,11.03624]
[1741952038043,5.30772344,1907.6,1907.2,11.03629]
[1741952038189,5.30772344,1907.6,1907.3,5.24299]
[1741952038893,0.06553344,1907.6,1907.3,5.24289]
[1741952039108,0.7627,1907.7,1907.4,5.24273]
[1741952039351,11.25343,1907.9,1907.5,0.8323]
[1741952039492,0.06553335,1907.8,1907.5,6.07467]
[1741952039697,5.30722335,1907.8,1907.5,6.07467]
[1741952040002,6.02,1908.0,1907.7,5.24183]
[1741952040201,8.30662756,1908.0,1907.7,6.290211]
[1741952040505,3.06551756,1908.0,1907.7,1.048381]
[1741952041342,8.30670756,1908.0,1907.7,5.24185]
[1741952043029,0.06551756,1908.0,1907.8,5.24154]
[1741952043216,0.06551756,1908.0,1907.5,1.3823]
[1741952043217,3.06551756,1908.0,1907.7,10.48362]
[1741952043416,3.06551756,1908.0,1907.7,5.24178]
[1741952043731,5.24168,1907.8,1907.5,6.62474]
[1741952044029,5.24168,1907.8,1907.5,7.811483]
[1741952045106,6.01718,1907.8,1907.5,1.736743]
[1741952045310,6.08270317,1907.8,1907.5,6.979203]
[1741952046840,0.84102317,1907.8,1907.5,6.979073]
[1741952047012,0.06552311,1907.9,1907.6,5.242]
[1741952047349,5.24085,1908.1,1907.7,6.08935812]
[1741952047499,5.24085,1908.1,1907.8,5.24163]
[1741952047835,6.03186,1908.2,1907.8,10.4831]
[1741952048000,0.7913,1908.4,1907.8,0.55]
[1741952048199,0.06551632,1908.3,1908.0,0.8074]
[1741952048520,5.30591632,1908.3,1908.0,1.41751531]
[1741952048716,5.30591632,1908.3,1908.0,0.8074]
[1741952049133,3.0,1908.2,1908.0,6.04846]
[1741952049636,3.0,1908.2,1908.0,0.8074]
[1741952049937,6.06301734,1908.1,1907.7,1.0396409]
[1741952050147,5.24118,1908.0,1907.6,5.94520615]
[1741952050326,5.24081,1908.1,1907.8,6.00341]
[1741952050645,0.06551653,1908.1,1907.9,5.24124]
[1741952050941,0.06551653,1908.1,1907.8,6.00339]
[1741952051142,0.06551653,1908.1,1907.8,5.24159]
[1741952051944,0.06551653,1908.1,1907.7,6.63765061]
[1741952051945,5.30637653,1908.1,1907.7,6.63765061]
[1741952052241,5.30637653,1908.1,1907.8,0.66376506]
[1741952053545,10.54745653,1908.1,1907.8,0.66376506]
[1741952053740,5.30637653,1908.1,1907.8,0.66376506]
[1741952054645,5.30637653,1908.1,1907.8,5.90537506]
[1741952055351,5.30637653,1908.1,1907.8,0.66376506]
[1741952057542,10.54736653,1908.1,1907.8,0.66376506]
[1741952058051,10.54736653,1908.1,1907.5,1.80908764]
[1741952058052,4.99991089,1908.0,1907.5,1.80908764]
[1741952058215,10.48357,1907.8,1907.5,0.7755]
[1741952058414,5.24191,1907.7,1907.5,0.7755]
[1741952058649,5.24174,1907.8,1907.5,6.01794]
[1741952058949,5.24192,1907.7,1907.5,1.901551]
[1741952059147,5.24192,1907.7,1907.5,1.126051]
[1741952059355,5.24192,1907.7,1907.4,5.24257]
[1741952059849,6.01281,1907.6,1907.1,6.01882]
[1741952060050,6.01281,1907.6,1907.2,5.24318]
[1741952060230,11.25518,1907.6,1907.3,0.55]
[1741952060426,6.01281,1907.6,1907.3,1.129318]
[1741952060632,6.07834082,1907.6,1907.3,1.129318]
[1741952060949,0.83603082,1907.6,1907.3,6.372298]
[1741952061147,5.30748082,1907.7,1907.4,5.24271]
[1741952061356,6.03296,1907.8,1907.5,5.2424]
[1741952061651,11.27475,1907.8,1907.4,7.2047008]
[1741952062027,0.06552701,1907.7,1907.4,7.2047008]
[1741952062232,5.30745701,1907.7,1907.4,7.2047008]
[1741952062854,5.30745701,1907.7,1907.4,1.9619908]
[1741952063440,6.03296,1907.8,1907.4,7.2044608]
[1741952063648,6.09848696,1907.8,1907.5,0.72044608]
[1741952063827,11.34034696,1907.8,1907.5,0.72044608]
[1741952064027,11.27482,1907.8,1907.5,0.72044608]
[1741952064229,0.065527,1907.7,1907.5,0.72044608]
[1741952064556,6.03296,1907.8,1907.5,0.72044608]
[1741952064557,6.09848678,1907.8,1907.5,0.72044608]
[1741952064857,11.34034678,1907.8,1907.5,0.72044608]
[1741952065022,11.27482,1907.8,1907.5,0.72044608]
[1741952065435,6.03296,1907.8,1907.5,5.96288608]
[1741952065670,6.09848697,1907.8,1907.5,5.96288608]
[1741952066358,6.09848697,1907.8,1907.5,0.72044608]
[1741952066525,5.24194,1907.7,1907.5,0.72044608]
[1741952066928,5.30746705,1907.7,1907.5,0.72044608]
[1741952067230,6.03296,1907.8,1907.5,0.72044608]
[1741952067429,6.03296,1907.8,1907.5,5.96286608]
[1741952067826,6.09848697,1907.8,1907.5,5.96286608]
[1741952068127,11.26084,1908.1,1907.7,0.8307]
[1741952068128,6.02,1908.1,1907.7,0.8307]
[1741952068349,0.06551861,1908.0,1907.7,6.07244]
[1741952068630,0.06551861,1908.0,1907.7,11.31416]
[1741952069740,0.06551861,1908.0,1907.7,11.31419]
[1741952070064,11.26082,1908.1,1907.7,6.07249]
[1741952070241,0.06551735,1908.0,1907.8,0.607249]
[1741952070442,5.30669735,1908.0,1907.8,0.607249]
[1741952070642,5.30669735,1908.0,1907.6,10.48413]
[1741952071262,5.30669735,1908.0,1907.6,10.48398]
[1741952071464,5.30669735,1908.0,1907.7,5.2419]
[1741952072082,0.06551735,1908.0,1907.7,5.2419]
[1741952072288,0.06551735,1908.0,1907.8,0.52419]
[1741952072453,5.30660735,1908.0,1907.7,5.2419]
[1741952072788,5.24083,1908.1,1907.7,5.29420396]
[1741952072989,5.30634717,1908.1,1907.7,10.53595396]
[1741952073288,5.30634717,1908.1,1907.7,5.29416396]
[1741952073492,5.30634717,1908.1,1907.7,10.53590396]
[1741952073702,0.7631,1908.6,1908.4,5.23999]
[1741952073856,6.0022,1908.8,1908.4,10.47966]
[1741952074054,6.06769858,1908.8,1908.4,5.2398]
[1741952074267,5.23918,1908.7,1908.4,5.2398]
[1741952074687,5.3046768,1908.7,1908.4,5.2398]
[1741952075389,10.5440368,1908.7,1908.3,5.24024]
[1741952075740,5.23989,1908.5,1908.3,0.55]
[1741952076061,5.2395,1908.6,1908.3,0.55]
[1741952076483,5.23973,1908.5,1908.3,0.55]
[1741952076689,5.23952,1908.6,1908.3,0.55]
[1741952077294,3.0654968,1908.7,1908.1,6.06528]
[1741952077477,5.24,1908.4,1908.1,6.06528]
[1741952077860,0.7899,1908.5,1908.1,11.30599]
[1741952077861,6.02966,1908.5,1908.1,11.30599]
[1741952078862,5.23976,1908.5,1908.2,5.24054]
[1741952080101,10.47968,1908.5,1908.1,6.06528]
[1741952080599,5.23976,1908.5,1908.1,6.06528]
[1741952080788,5.23976,1908.5,1908.1,7.250916]
[1741952082367,5.23976,1908.5,1908.1,12.491516]
[1741952083768,5.23976,1908.5,1908.1,6.06523]
[1741952083973,0.7913,1908.4,1908.1,5.24063]
[1741952084173,6.03129,1908.4,1908.1,5.24063]
[1741952085406,5.23977,1908.5,1908.1,10.48129]
[1741952085603,5.3052707,1908.5,1908.1,10.48129]
[1741952085905,5.3052707,1908.5,1908.1,6.343759]
[1741952085906,10.5451807,1908.5,1908.1,6.343759]
[1741952086205,5.3052707,1908.5,1908.1,11.584409]
[1741952087166,5.3052707,1908.5,1908.2,5.24045]
[1741952087365,5.3052707,1908.5,1908.1,6.343759]
[1741952087585,5.3052707,1908.5,1908.1,11.584479]
[1741952087785,5.23977,1908.5,1908.1,11.584479]
[1741952088304,5.23977,1908.5,1908.2,5.2405]
[1741952088602,6.07470072,1908.6,1908.2,11.27221]
[1741952088800,0.83520072,1908.6,1908.3,5.2402]
[1741952088974,0.06550072,1908.6,1908.3,5.2402]
[1741952089168,5.23961,1908.6,1908.2,7.2694839]
[1741952089384,0.06550071,1908.5,1908.2,6.03195]
[1741952089601,0.06550071,1908.5,1908.2,5.24045]
[1741952089807,0.85680071,1908.5,1908.2,5.24045]
[1741952090171,6.09665071,1908.5,1908.1,5.24068]
[1741952090684,5.24004,1908.4,1908.1,5.24068]
[1741952090988,11.27111,1908.5,1908.1,5.24068]
[1741952091188,6.03115,1908.5,1908.1,10.48134]
[1741952091906,0.7913,1908.5,1908.1,5.24066]
[1741952092202,0.7913,1908.5,1908.2,5.24043]
[1741952092397,0.7913,1908.5,1908.1,5.901606]
[1741952092398,6.09652341,1908.5,1908.1,5.24078]
[1741952092906,5.24008,1908.4,1908.1,0.55]
[1741952093905,5.24008,1908.4,1908.0,5.24092]
[1741952094073,5.30585445,1908.3,1908.0,5.24092]
[1741952094475,0.06550445,1908.3,1908.0,5.24092]
[1741952094675,5.30558724,1908.4,1908.0,6.370656]
[1741952094888,5.30558724,1908.4,1908.0,5.24092]
[1741952095311,11.27093,1908.5,1908.1,5.24076]
[1741952095500,0.06550715,1908.4,1908.1,5.24076]
[1741952095709,5.30550715,1908.4,1908.1,5.24076]
[1741952096482,6.03104,1908.5,1908.1,5.24076]
[1741952096674,0.06550714,1908.4,1908.1,5.24076]
[1741952096879,0.06550714,1908.4,1908.1,6.288928]
[1741952097714,0.06550714,1908.4,1908.1,11.529618]
[1741952098012,0.06550714,1908.4,1908.1,6.288858]
[1741952098313,6.02,1908.7,1908.3,6.02339]
[1741952098513,5.23982,1908.5,1908.1,7.622218]
[1741952098710,0.7644,1908.5,1908.3,5.24025]
[1741952098915,0.7644,1908.5,1908.2,5.2405]
[1741952099280,5.3049485,1908.6,1908.2,5.24035]
[1741952099508,5.3049485,1908.6,1908.3,5.24025]
[1741952100686,5.3049485,1908.6,1908.3,6.28831]
[1741952101605,0.0654985,1908.6,1908.3,6.28831]
[1741952101918,3.0,1908.8,1908.5,5.23971]
[1741952102216,3.0,1908.8,1908.4,6.02218]
[1741952102217,0.06549658,1908.7,1908.4,6.02218]
[1741952102382,5.30474658,1908.7,1908.4,1.489324]
[1741952103697,0.06549658,1908.7,1908.4,6.729184]
[1741952103900,13.47806,1908.8,1908.4,6.729184]
[1741952104104,8.23898,1908.8,1908.4,6.729184]
[1741952104312,8.30447547,1908.8,1908.4,6.729184]
[1741952104617,5.23921,1908.7,1908.4,6.729184]
[1741952105118,13.47805,1908.8,1908.4,6.729174]
[1741952105296,8.23898,1908.8,1908.4,11.968994]
[1741952105616,13.47807,1908.8,1908.5,1.1968994]
[1741952105915,13.47807,1908.8,1908.4,6.729144]
[1741952106217,8.23898,1908.8,1908.4,6.729144]
[1741952106419,13.47805,1908.8,1908.4,6.729144]
[1741952108223,8.23898,1908.8,1908.5,5.23966]
[1741952108387,13.47807,1908.8,1908.4,6.729144]
[1741952109839,13.47806,1908.8,1908.4,6.729144]
[1741952113408,0.06549542,1908.7,1908.4,6.729144]
[1741952114304,5.30467542,1908.7,1908.4,5.23982]
[1741952114508,0.756,1908.6,1908.4,5.23982]
[1741952114733,6.06067542,1908.7,1908.4,5.23982]
[1741952114938,0.82149542,1908.7,1908.4,5.23982]
[1741952115838,9.03028,1908.8,1908.4,5.23982]
[1741952116337,9.0957754,1908.8,1908.4,5.23982]
[1741952116543,14.3348454,1908.8,1908.4,5.23982]
[1741952116714,14.26935,1908.8,1908.5,0.49147033]
[1741952116914,0.0654954,1908.7,1908.5,0.49147033]
[1741952118231,0.0654954,1908.7,1908.4,5.23982]
[1741952118432,0.0654954,1908.7,1908.4,6.287823]
[1741952119036,0.0654954,1908.7,1908.4,1.048003]
[1741952119240,0.7913,1909.2,1908.5,0.7988]
[1741952119446,6.02,1909.5,1909.2,5.23779]
[1741952119646,0.06547229,1909.4,1909.2,5.23779]
[1741952120057,0.7913,1909.5,1909.2,5.23779]
[1741952120240,0.85677036,1909.5,1909.2,5.23779]
[1741952121311,0.85677036,1909.5,1909.1,5.23805]
[1741952121521,6.09381036,1909.5,1909.1,11.523577]
[1741952121717,6.09381036,1909.5,1909.1,6.285527]
[1741952122147,11.33100036,1909.5,1909.1,6.285527]
[1741952122351,5.23773,1909.3,1909.0,0.4904103]
[1741952122652,10.54092717,1909.3,1909.0,0.4904103]
[1741952122817,10.54092717,1909.3,1908.9,6.0373]
[1741952123021,5.23772,1909.3,1909.0,5.23832]
[1741952123351,5.23733,1909.4,1909.0,6.365882]
[1741952123732,5.23782,1909.2,1908.9,0.7988]
[1741952123928,0.06547707,1909.4,1909.0,0.55]
[1741952124129,0.7913,1909.9,1909.4,0.8103]
[1741952124450,5.23627,1909.8,1909.4,1.42163578]
[1741952124657,5.23627,1909.8,1909.3,5.78747]
[1741952124658,5.23702,1909.5,1909.2,0.7932]
[1741952124951,0.7913,1909.6,1909.3,5.23746]
[1741952125155,8.30189552,1909.7,1909.2,6.03098]
[1741952125337,8.30205552,1909.7,1909.2,0.7932]
[1741952125532,8.30203552,1909.7,1909.3,5.23727]
[1741952125858,5.2367,1909.6,1909.2,6.03088]
[1741952126254,8.23658,1909.7,1909.3,5.2374]
[1741952126453,5.23676,1909.6,1909.2,6.03088]
[1741952126759,0.06546205,1909.5,1909.2,6.03088]
[1741952126931,6.06791205,1909.5,1909.0,7.10542136]
[1741952127130,6.06791205,1909.5,1909.0,7.41689562]
[1741952127131,5.23735,1909.4,1909.0,7.41689562]
[1741952127523,5.30282235,1909.4,1909.0,7.41689562]
[1741952127926,0.7653,1909.5,1909.2,5.23772]
[1741952128155,0.83076754,1909.5,1909.1,5.23794]
[1741952128458,6.06774754,1909.5,1909.1,5.23794]
[1741952128662,5.23733,1909.4,1909.0,0.8068]
[1741952128834,0.06547072,1909.3,1908.9,10.47682]
[1741952129263,5.30299072,1909.3,1908.9,5.23836]
[1741952129468,0.7556,1909.2,1908.8,0.8287]
[1741952129759,9.02,1909.4,1908.5,5.23954]
[1741952129760,5.99492,1908.9,1908.5,5.23954]
[1741952129963,8.99427,1909.1,1908.6,5.23927]
[1741952130158,5.23849,1909.0,1908.6,5.23927]
[1741952130357,5.30397954,1909.0,1908.5,5.23964]
[1741952130532,5.23871,1908.9,1908.5,5.23964]
[1741952130735,0.06548958,1908.8,1908.4,11.05853]
[1741952130933,0.82738958,1908.8,1908.4,11.05853]
[1741952131142,6.06638958,1908.8,1908.4,11.05853]
[1741952131865,5.23918,1908.7,1908.3,5.24005]
[1741952132062,0.7619,1908.8,1908.4,5.23998]
[1741952132261,0.7619,1908.8,1908.3,5.844175]
[1741952132262,5.23929,1908.7,1908.3,11.084295]
[1741952132659,5.23929,1908.7,1908.4,0.12255941]
[1741952132660,5.23946,1908.6,1908.4,0.12255941]
[1741952132868,5.30495607,1908.6,1908.2,6.04153]
[1741952133159,5.30495607,1908.6,1908.5,0.12272574]
[1741952133460,10.47987,1908.5,1908.1,5.73052025]
[1741952133634,6.03121,1908.5,1908.1,5.73052025]
[1741952134035,6.09671162,1908.5,1908.1,12.85269593]
[1741952134329,6.03048,1908.7,1908.2,5.24031]
[1741952134531,0.85679949,1908.7,1908.3,5.24002]
[1741952134762,6.09597949,1908.7,1908.3,10.48015]
[1741952134963,6.09601949,1908.7,1908.3,0.806]
[1741952135130,6.09601949,1908.7,1908.3,11.28626]
[1741952135333,6.09601949,1908.7,1908.3,6.0461]
[1741952136467,6.09601949,1908.7,1908.3,6.0461]
[1741952137770,6.09601949,1908.7,1908.3,5.2401]
[1741952138668,5.23959,1908.6,1908.1,7.95454568]
[1741952138866,5.30528957,1908.5,1908.2,5.24053]
[1741952139070,0.06549957,1908.5,1908.2,5.24053]
[1741952139864,5.30533957,1908.5,1908.1,6.07283]
[1741952140064,0.06549957,1908.5,1908.1,6.073]
[1741952140240,0.06549957,1908.5,1908.2,5.24044]
[1741952141877,5.30522957,1908.5,1908.2,5.24044]
[1741952142465,5.23953,1908.6,1908.3,0.11912891]
[1741952142665,5.23953,1908.6,1908.3,5.35936891]
[1741952142872,6.94010195,1908.7,1908.3,5.35936891]
[1741952143072,9.02996,1908.9,1908.5,5.23953]
[1741952143288,19.26878,1908.9,1908.5,5.23953]
[1741952143469,5.30441391,1908.8,1908.6,0.11860894]
[1741952143641,0.06549391,1908.8,1908.6,5.23917]
[1741952143843,0.902,1909.3,1908.9,5.23848]
[1741952143844,5.772,1909.3,1908.9,5.23848]
[1741952144042,5.772,1909.3,1909.0,5.23821]
[1741952144292,0.767,1909.3,1909.0,5.35636252]
[1741952144579,6.07015342,1909.3,1909.0,0.11815252]
[1741952146544,0.06547342,1909.3,1909.0,5.35647252]
[1741952147145,0.06547342,1909.3,1909.0,0.11815252]
[1741952147349,5.30314342,1909.3,1909.0,0.78839457]
[1741952147571,6.02861,1909.4,1909.0,6.02661457]
[1741952147878,11.33154467,1909.4,1909.0,6.02661457]
[1741952148080,11.26607,1909.4,1909.0,6.02661457]
[1741952148282,0.06547567,1909.3,1909.0,6.02661457]
[1741952148451,0.06547567,1909.3,1909.0,0.78839457]
[1741952148452,5.30304567,1909.3,1909.0,0.78839457]
[1741952148651,10.54075567,1909.3,1909.0,0.11815252]
[1741952148851,5.30304567,1909.3,1909.0,0.11815252]
[1741952149677,5.23807,1909.1,1909.0,0.11815252]
[1741952149880,5.23752,1909.3,1908.9,0.8248]
[1741952150081,10.54071777,1909.3,1909.0,0.11783707]
[1741952150665,5.23782,1909.2,1909.0,0.11783707]
[1741952151284,5.30299777,1909.3,1909.0,0.11783707]
[1741952151483,6.02856,1909.4,1909.0,5.35604707]
[1741952151654,0.06547669,1909.3,1909.0,0.11783707]
[1741952151860,5.30308669,1909.3,1909.0,0.11783707]
[1741952152258,5.23761,1909.3,1909.0,0.11783707]
[1741952152485,5.23761,1909.3,1909.0,5.35609707]
[1741952152681,5.30308668,1909.3,1909.0,5.35609707]
[1741952152898,5.30308668,1909.3,1909.0,0.11783707]
[1741952153098,10.54078668,1909.3,1909.0,0.11783707]
[1741952153804,11.67399535,1909.3,1909.0,0.11783707]
[1741952153984,11.60851867,1909.3,1909.0,0.11783707]
[1741952154170,0.06547676,1909.2,1909.0,0.11783707]
[1741952154887,5.30338676,1909.2,1909.0,0.11783707]
[1741952155369,5.30338676,1909.2,1909.1,0.11727561]
[1741952155564,6.35748044,1909.2,1908.8,5.23888]
[1741952155769,5.23808,1909.1,1908.9,0.11762206]
[1741952155966,0.06547788,1909.0,1908.9,0.11762206]
[1741952156170,5.23909,1908.8,1908.3,6.30358491]
[1741952156365,5.23909,1908.8,1908.4,0.16705766]
[1741952156570,10.47743,1908.9,1908.5,5.23967]
[1741952156766,5.30448227,1908.8,1908.6,0.11438369]
[1741952156967,5.30448227,1908.8,1908.4,5.23974]
[1741952157281,5.30448227,1908.8,1908.5,0.114557]
[1741952159995,10.54355227,1908.8,1908.5,0.114557]
[1741952160208,5.30448227,1908.8,1908.5,0.114557]
[1741952160993,10.54360227,1908.8,1908.5,0.114557]
[1741952161197,5.30448227,1908.8,1908.5,0.114557]
[1741952161365,5.30448227,1908.8,1908.5,0.903657]
[1741952161565,0.06549227,1908.8,1908.5,6.143257]
[1741952161765,5.3041125,1908.9,1908.5,6.143257]
[1741952161968,11.26711,1909.2,1908.6,0.05239399]
[1741952162192,11.26711,1909.2,1908.9,6.02213]
[1741952162193,0.06548539,1909.1,1908.9,6.02213]
[1741952162392,5.30364539,1909.1,1909.0,0.11380591]
[1741952162595,12.68733193,1909.1,1908.7,5.23915]
[1741952162765,11.2677,1909.1,1908.8,0.11415239]
[1741952162967,5.23835,1909.0,1908.8,0.11415239]
[1741952163281,6.02946,1909.1,1908.8,0.11415239]
[1741952163461,6.0949423,1909.1,1908.8,0.11415239]
[1741952163667,11.3332423,1909.1,1908.8,0.11415239]
[1741952163993,5.23845,1909.0,1908.8,0.11415239]
[1741952164198,5.23861,1908.9,1908.8,0.11415239]
[1741952164398,5.23861,1908.9,1908.6,0.7994]
[1741952164399,5.3040961,1908.9,1908.6,0.7994]
[1741952164598,6.03033,1908.8,1908.7,0.11432566]
[1741952164788,5.23922,1908.7,1908.5,0.48978494]
[1741952164984,5.30471268,1908.7,1908.6,0.1108069]
[1741952165596,0.06549268,1908.7,1908.6,0.1108069]
[1741952166197,0.06549268,1908.7,1908.4,6.00288]
[1741952166719,0.06549268,1908.7,1908.5,0.11098021]
[1741952167216,5.30466268,1908.7,1908.5,0.11098021]
[1741952167810,5.23944,1908.6,1908.5,0.11098021]
[1741952168016,5.23944,1908.6,1908.3,5.008]
[1741952168185,5.23944,1908.6,1908.4,0.11125059]
[1741952168388,10.47908,1908.6,1908.2,12.11932]
[1741952168572,5.23944,1908.6,1908.3,0.11142393]
[1741952168890,0.06549914,1908.7,1908.4,10.47986]
[1741952169197,0.06549914,1908.7,1908.5,0.11107727]
[1741952169401,5.30467914,1908.7,1908.5,0.11107727]
[1741952169699,0.06549914,1908.7,1908.5,0.11107727]
[1741952170007,5.30476914,1908.7,1908.5,0.11107727]
[1741952170804,16.49745,1908.9,1908.5,6.10134727]
[1741952171372,6.02,1908.9,1908.6,10.47873]
[1741952171573,0.06548571,1908.9,1908.7,0.11076101]
[1741952171897,0.06548571,1908.9,1908.6,5.23929]
[1741952172068,0.06548571,1908.9,1908.8,0.11058774]
[1741952172272,0.06548571,1908.9,1908.7,5.34983101]
[1741952172474,3.06548571,1909.0,1908.8,0.11058774]
[1741952172792,5.30359519,1909.1,1908.8,6.11375774]
[1741952173095,5.23811,1909.1,1908.8,6.11375774]
[1741952173473,0.06548526,1909.0,1908.8,0.87488774]
[1741952173674,5.23811,1909.1,1908.8,0.87488774]
[1741952174104,5.23811,1909.1,1908.8,6.11377774]
[1741952174276,5.30330533,1909.2,1908.8,7.35494872]
[1741952174471,10.47637,1909.1,1908.8,0.11058774]
[1741952174673,5.30384186,1909.0,1908.8,0.11058774]
[1741952175609,0.06548186,1909.0,1908.7,5.23913]
[1741952175803,8.2378,1909.2,1908.8,5.23866]
[1741952175991,8.30328241,1909.2,1908.8,0.11058774]
[1741952176191,5.23854,1909.0,1908.8,0.11058774]
[1741952176398,0.06548502,1909.0,1908.7,5.23904]
[1741952176571,5.30362363,1909.1,1908.8,0.11058774]
[1741952177014,5.30362363,1909.1,1908.8,5.34941774]
[1741952177403,0.06548363,1909.1,1908.8,0.11058774]
[1741952177611,5.23831,1909.1,1908.8,0.11058774]
[1741952177975,0.06548259,1909.0,1908.8,0.11058774]
[1741952178505,5.30379259,1909.1,1908.8,0.11058774]
[1741952178711,5.30379259,1909.1,1908.8,5.34934774]
[1741952179081,0.06548259,1909.1,1908.8,10.58806774]
[1741952179277,0.06548107,1909.2,1908.9,6.00816]
[1741952179607,0.06547842,1909.4,1909.3,0.7696]
[1741952179778,0.06546964,1909.6,1909.3,6.1166125]
[1741952179978,5.30217964,1909.6,1909.3,6.1166125]
[1741952180190,5.30217964,1909.6,1909.3,6.007]
[1741952180607,5.30217964,1909.6,1909.4,0.10943934]
[1741952180905,5.30217964,1909.6,1909.3,6.007]
[1741952181078,5.30217964,1909.6,1909.5,0.1092662]
[1741952181280,5.30217964,1909.6,1909.3,6.007]
[1741952181615,5.30217964,1909.6,1909.4,0.10943934]
[1741952181775,5.30217964,1909.6,1909.3,6.007]
[1741952182128,5.30217964,1909.6,1909.4,0.10943934]
[1741952182414,5.30217964,1909.6,1909.3,6.007]
[1741952182781,5.30217964,1909.6,1909.4,0.10943934]
[1741952182974,5.30217964,1909.6,1909.3,6.007]
[1741952183177,5.30217964,1909.6,1909.4,0.10943934]
[1741952183480,5.30217964,1909.6,1909.3,0.7696]
[1741952183877,5.30217964,1909.6,1909.4,0.10943934]
[1741952184081,5.30217964,1909.6,1909.3,0.7696]
[1741952184281,0.06546964,1909.6,1909.5,0.1092662]
[1741952184508,0.06546964,1909.6,1909.4,0.10943934]
[1741952184688,0.06546964,1909.6,1909.3,6.00708]
[1741952184889,0.06546964,1909.6,1909.5,0.1092662]
[1741952185577,0.06546964,1909.6,1909.3,11.24444]
[1741952185777,0.06546964,1909.6,1909.5,0.1092662]
[1741952186313,0.06546964,1909.6,1909.3,6.0069]
[1741952186622,23.351,1909.9,1909.6,5.23665]